fUSD/lending_fUSD_20260508
["ID","MTS","AMOUNT","RATE_DAILY","PERIOD"]
[421825004,1778189916000,-500.0,0.00043,45]
[421825021,1778189916000,-1352.492882,0.00043,120]
[421825022,1778189916000,-1352.492882,0.00043,120]
[421825020,1778189916000,-1352.492882,0.00043,120]
[421825017,1778189916000,-282.0,0.00043,120]
[421825019,1778189916000,-151.0,0.00043,120]
[421825016,1778189916000,-350.0,0.00043,120]
[421825013,1778189916000,-160.0,0.00043,82]
[421825014,1778189916000,-160.0,0.00043,82]
[421825018,1778189916000,-224.48,0.00043,30]
[421825015,1778189916000,-350.0,0.00043,120]
[421825011,1778189916000,-2992.35019452,0.00043,120]
[421825010,1778189916000,-100000.0,0.00043,120]
[421825009,1778189916000,-2405.01358762,0.00043,30]
[421825008,1778189916000,-2500.0,0.00043,30]
[421825005,1778189916000,-500.0,0.00043,45]
[421825007,1778189916000,-1645688.23882673,0.00043,120]
[421825012,1778189916000,-184.0,0.00043,120]
[421825006,1778189916000,-139950.20552125,0.00043,120]
[421825034,1778189917000,-152.22,0.0004319,120]
[421825035,1778189917000,-218.96,0.000432,30]
[421825036,1778189917000,-271.14,0.00043204,120]
[421825037,1778189917000,-16938.15995315,0.00043209,120]
[421825038,1778189917000,-1560.0,0.00043288,120]
[421825032,1778189917000,-161.96,0.00043156,30]
[421825039,1778189917000,-2419.0,0.00043288,90]
[421825033,1778189917000,-310.0,0.00043181,111]
[421825023,1778189917000,-1352.492882,0.00043,120]
[421825029,1778189917000,-500.0,0.00043049,120]
[421825031,1778189917000,-271.14,0.00043104,120]
[421825028,1778189917000,-1560.0,0.00043014,120]
[421825027,1778189917000,-271.14,0.00043004,120]
[421825026,1778189917000,-261.23442791,0.00043,120]
[421825025,1778189917000,-651.0,0.00043,120]
[421825024,1778189917000,-603.0,0.00043,120]
[421825040,1778189917000,-2500.0,0.000433,120]
[421825030,1778189917000,-500.0,0.00043049,120]
[421825043,1778189917000,-210.0,0.000433,120]
[421825047,1778189917000,-700.0,0.00043387,120]
[421825042,1778189917000,-928.501493,0.000433,120]
[421825041,1778189917000,-2500.0,0.000433,120]
[421825060,1778189917000,-620.0,0.00043452,120]
[421825062,1778189917000,-620.0,0.00043452,120]
[421825057,1778189917000,-620.0,0.00043452,120]
[421825059,1778189917000,-620.0,0.00043452,120]
[421825056,1778189917000,-620.0,0.00043452,120]
[421825058,1778189917000,-620.0,0.00043452,120]
[421825055,1778189917000,-271.14,0.00043404,120]
[421825054,1778189917000,-15771.5856,0.000434,90]
[421825061,1778189917000,-620.0,0.00043452,120]
[421825052,1778189917000,-13396.03,0.000434,90]
[421825051,1778189917000,-13396.035,0.000434,90]
[421825050,1778189917000,-2950.5,0.000434,90]
[421825049,1778189917000,-2950.502,0.000434,90]
[421825048,1778189917000,-2950.502,0.000434,90]
[421825044,1778189917000,-378.923409,0.000433,120]
[421825046,1778189917000,-2000.0,0.00043341,120]
[421825045,1778189917000,-271.14,0.00043304,120]
[421825053,1778189917000,-1259.6699,0.000434,120]
[421825078,1778189918000,-60000.0,0.000435,80]
[421825076,1778189918000,-60000.0,0.000435,70]
[421825075,1778189918000,-60000.0,0.000435,65]
[421825077,1778189918000,-60000.0,0.000435,75]
[421825074,1778189918000,-500.0,0.000435,45]
[421825073,1778189918000,-500.0,0.000435,45]
[421825071,1778189918000,-154.0,0.000435,120]
[421825067,1778189918000,-152.22,0.0004346,120]
[421825069,1778189918000,-384636.86139793,0.0004348,30]
[421825068,1778189918000,-2207.99,0.00043471,30]
[421825070,1778189918000,-206.71750782,0.000435,120]
[421825065,1778189918000,-620.0,0.00043452,120]
[421825064,1778189918000,-620.0,0.00043452,120]
[421825066,1778189918000,-306.92,0.00043452,120]
[421825063,1778189918000,-620.0,0.00043452,120]
[421825080,1778189918000,-60000.0,0.000435,90]
[421825072,1778189918000,-2269.4955058,0.000435,120]
[421825082,1778189918000,-224.48,0.000435,30]
[421825085,1778189918000,-163.0,0.00043565,120]
[421825079,1778189918000,-60000.0,0.000435,85]
[421825099,1778189918000,-271.14,0.00043604,120]
[421825081,1778189918000,-100000.0,0.000435,120]
[421825098,1778189918000,-89750.8803582,0.000436,120]
[421825096,1778189918000,-2500.0,0.000436,120]
[421825092,1778189918000,-155.0,0.00043565,120]
[421825095,1778189918000,-2500.0,0.000436,120]
[421825094,1778189918000,-280.0,0.00043565,120]
[421825093,1778189918000,-153.0,0.00043565,120]
[421825097,1778189918000,-282.27172875,0.000436,60]
[421825088,1778189918000,-414.0,0.00043565,120]
[421825090,1778189918000,-154.0,0.00043565,120]
[421825089,1778189918000,-157.0,0.00043565,120]
[421825087,1778189918000,-227.0,0.00043565,120]
[421825086,1778189918000,-155.0,0.00043565,120]
[421825084,1778189918000,-153.0,0.00043565,120]
[421825083,1778189918000,-271.14,0.00043504,120]
[421825091,1778189918000,-156.0,0.00043565,120]
[421825110,1778189919000,-2000.0,0.00043807,120]
[421825111,1778189919000,-264175.87294387,0.00043835,120]
[421825109,1778189919000,-271.14,0.00043804,120]
[421825107,1778189919000,-303.19262795,0.000438,30]
[421825106,1778189919000,-271.4945618,0.000438,110]
[421825104,1778189919000,-152.22,0.0004372,120]
[421825105,1778189919000,-765.69501545,0.000438,30]
[421825103,1778189919000,-271.14,0.00043704,120]
[421825102,1778189919000,-1279.8,0.00043703,120]
[421825112,1778189919000,157.07199923,0.000435,120]
[421825100,1778189919000,-187598.0,0.0004365,60]
[421825108,1778189919000,-218.96,0.000438,30]
[421825113,1778189919000,547.43,0.00043,120]
[421825101,1778189919000,-244.81589958,0.000437,120]
[421825115,1778189919000,1458.59,0.00043,120]
[421825127,1778189919000,151.0,0.0004249,30]
[421825128,1778189919000,639.56,0.0004249,30]
[421825126,1778189919000,478.87,0.0004249,30]
[421825124,1778189919000,151.0,0.0004249,30]
[421825125,1778189919000,569.23,0.0004249,30]
[421825123,1778189919000,151.0,0.0004249,30]
[421825114,1778189919000,4477.12,0.00043,120]
[421825120,1778189919000,393.39,0.0004249,30]
[421825121,1778189919000,151.0,0.0004249,30]
[421825119,1778189919000,151.0,0.0004249,30]
[421825117,1778189919000,183.75,0.0004249,30]
[421825118,1778189919000,151.0,0.0004249,30]
[421825116,1778189919000,197.84,0.00043,120]
[421825122,1778189919000,151.0,0.0004249,30]
[421825140,1778189920000,639.56,0.0004249,30]
[421825141,1778189920000,571.48,0.0004249,30]
[421825139,1778189920000,151.0,0.0004249,30]
[421825138,1778189920000,569.23,0.0004249,30]
[421825136,1778189920000,151.0,0.0004249,30]
[421825137,1778189920000,478.87,0.0004249,30]
[421825132,1778189920000,151.0,0.0004249,30]
[421825134,1778189920000,393.39,0.0004249,30]
[421825133,1778189920000,151.0,0.0004249,30]
[421825130,1778189920000,183.75,0.0004249,30]
[421825131,1778189920000,151.0,0.0004249,30]
[421825129,1778189920000,571.48,0.0004249,30]
[421825142,1778189920000,151.0,0.0004249,30]
[421825135,1778189920000,151.0,0.0004249,30]
[421825144,1778189920000,151.0,0.0004249,30]
[421825159,1778189920000,160.46,0.00031369,30]
[421825145,1778189920000,151.0,0.0004249,30]
[421825156,1778189920000,151.0,0.0004249,30]
[421825158,1778189920000,151.0,0.0004249,30]
[421825143,1778189920000,183.75,0.0004249,30]
[421825157,1778189920000,183.75,0.0004249,30]
[421825153,1778189920000,571.4,0.0004249,30]
[421825155,1778189920000,151.0,0.0004249,30]
[421825154,1778189920000,639.56,0.0004249,30]
[421825160,1778189920000,393.39,0.0004249,30]
[421825151,1778189920000,151.0,0.0004249,30]
[421825146,1778189920000,393.39,0.0004249,30]
[421825147,1778189920000,151.0,0.0004249,30]
[421825152,1778189920000,151.0,0.0004249,30]
[421825150,1778189920000,569.23,0.0004249,30]
[421825149,1778189920000,478.87,0.0004249,30]
[421825148,1778189920000,151.0,0.0004249,30]
[421825172,1778189921000,280.43,0.0004249,30]
[421825173,1778189921000,393.39,0.0004249,30]
[421825174,1778189921000,151.0,0.0004249,30]
[421825169,1778189921000,151.0,0.0004249,30]
[421825167,1778189921000,639.36,0.0004249,30]
[421825168,1778189921000,151.0,0.0004249,30]
[421825166,1778189921000,151.0,0.0004249,30]
[421825165,1778189921000,478.87,0.0004249,30]
[421825163,1778189921000,569.23,0.0004249,30]
[421825164,1778189921000,151.0,0.0004249,30]
[421825161,1778189921000,151.0,0.0004249,30]
[421825162,1778189921000,151.0,0.0004249,30]
[421825176,1778189921000,478.87,0.0004249,30]
[421825175,1778189921000,151.0,0.0004249,30]
[421825170,1778189921000,151.0,0.0004249,30]
[421825179,1778189921000,151.0,0.0004249,30]
[421825177,1778189921000,569.23,0.0004249,30]
[421825191,1778189921000,151.0,0.0004249,30]
[421825190,1778189921000,151.0,0.0004249,30]
[421825188,1778189921000,569.23,0.0004249,30]
[421825189,1778189921000,151.0,0.0004249,30]
[421825187,1778189921000,478.87,0.0004249,30]
[421825186,1778189921000,191.87,0.0004249,30]
[421825171,1778189921000,183.75,0.0004249,30]
[421825185,1778189921000,151.73,0.0004249,30]
[421825183,1778189921000,151.0,0.0004249,30]
[421825181,1778189921000,151.0,0.0004249,30]
[421825182,1778189921000,183.75,0.0004249,30]
[421825178,1778189921000,151.0,0.0004249,30]
[421825180,1778189921000,160.46,0.00031369,30]
[421825184,1778189921000,393.39,0.0004249,30]
[421825206,1778189922000,183.75,0.0004249,30]
[421825204,1778189922000,569.23,0.0004249,30]
[421825205,1778189922000,151.0,0.0004249,30]
[421825203,1778189922000,478.87,0.0004249,30]
[421825202,1778189922000,151.0,0.0004249,30]
[421825201,1778189922000,393.39,0.0004249,30]
[421825200,1778189922000,151.0,0.0004249,30]
[421825195,1778189922000,569.23,0.0004249,30]
[421825199,1778189922000,183.75,0.0004249,30]
[421825197,1778189922000,160.46,0.00031369,30]
[421825196,1778189922000,151.0,0.0004249,30]
[421825194,1778189922000,478.87,0.0004249,30]
[421825193,1778189922000,393.39,0.0004249,30]
[421825207,1778189922000,393.39,0.0004249,30]
[421825198,1778189922000,151.0,0.0004249,30]
[421825192,1778189922000,183.75,0.0004249,30]
[421825209,1778189922000,569.23,0.0004249,30]
[421825210,1778189922000,151.0,0.0004249,30]
[421825208,1778189922000,478.87,0.0004249,30]
[421825224,1778189922000,183.75,0.0004249,30]
[421825223,1778189922000,151.0,0.0004249,30]
[421825221,1778189922000,478.87,0.0004249,30]
[421825222,1778189922000,569.23,0.0004249,30]
[421825220,1778189922000,151.0,0.0004249,30]
[421825219,1778189922000,393.39,0.0004249,30]
[421825213,1778189922000,393.39,0.0004249,30]
[421825218,1778189922000,150.43,0.00025388,30]
[421825212,1778189922000,183.75,0.0004249,30]
[421825211,1778189922000,151.0,0.0004249,30]
[421825217,1778189922000,151.0,0.0004249,30]
[421825214,1778189922000,151.0,0.0004249,30]
[421825216,1778189922000,569.23,0.0004249,30]
[421825215,1778189922000,478.87,0.0004249,30]
[421825237,1778189923000,151.0,0.0004249,30]
[421825238,1778189923000,183.63,0.0004249,30]
[421825236,1778189923000,388.77,0.0004249,30]
[421825235,1778189923000,183.75,0.0004249,30]
[421825232,1778189923000,467.18,0.0004249,30]
[421825234,1778189923000,151.0,0.0004249,30]
[421825233,1778189923000,567.84,0.0004249,30]
[421825239,1778189923000,151.0,0.0004249,30]
[421825230,1778189923000,183.75,0.0004249,30]
[421825231,1778189923000,393.39,0.0004249,30]
[421825227,1778189923000,478.87,0.0004249,30]
[421825226,1778189923000,154.88,0.0004249,30]
[421825225,1778189923000,393.39,0.0004249,30]
[421825229,1778189923000,151.0,0.0004249,30]
[421825228,1778189923000,569.23,0.0004249,30]
[421825241,1778189923000,273.84,0.0004249,30]
[421825243,1778189923000,178.90821646,0.0004249,120]
[421825254,1778189923000,156.49,0.0004249,30]
[421825255,1778189923000,151.0,0.0004249,30]
[421825240,1778189923000,151.0,0.0004249,30]
[421825253,1778189923000,151.0,0.0004249,30]
[421825252,1778189923000,151.0,0.0004249,30]
[421825250,1778189923000,151.0,0.0004249,30]
[421825251,1778189923000,151.0,0.0004249,30]
[421825249,1778189923000,151.0,0.0004249,30]
[421825247,1778189923000,151.0,0.0004249,30]
[421825246,1778189923000,151.0,0.0004249,30]
[421825244,1778189923000,220.0,0.00043836,30]
[421825242,1778189923000,1255.22300747,0.0004249,120]
[421825248,1778189923000,151.0,0.0004249,30]
[421825245,1778189923000,287.26,0.0004249,30]
[421825260,1778189925000,151.0,0.0004249,30]
[421825259,1778189925000,435.21699561,0.0004249,120]
[421825258,1778189925000,151.0,0.0004249,30]
[421825257,1778189925000,150.46,0.00034772,30]
[421825256,1778189925000,151.0,0.0004249,30]
[421825262,1778189926000,225.15160466,0.0004249,120]
[421825261,1778189926000,527.9974148,0.0004249,120]
[421825264,1778189926000,150.46,0.00038646,30]
[421825265,1778189926000,529.79,0.000425,60]
[421825263,1778189926000,154.83,0.0004249,30]
[421825266,1778189927000,150.47,0.0004252,30]
[421825267,1778189929000,304.23060887,0.0004249,120]
[421825268,1778189938000,160.67198756,0.00016438,30]
[421825269,1778189939000,160.67198756,0.00016438,30]
[421825281,1778189944000,-151.0,0.0004249,30]
[421825277,1778189944000,-151.0,0.0004249,30]
[421825279,1778189944000,-569.23,0.0004249,30]
[421825278,1778189944000,-151.0,0.0004249,30]
[421825276,1778189944000,-639.56,0.0004249,30]
[421825273,1778189944000,-151.0,0.0004249,30]
[421825272,1778189944000,-183.75,0.0004249,30]
[421825274,1778189944000,-151.0,0.0004249,30]
[421825280,1778189944000,-393.39,0.0004249,30]
[421825271,1778189944000,-571.48,0.0004249,30]
[421825270,1778189944000,-151.0,0.0004249,30]
[421825275,1778189944000,-478.87,0.0004249,30]
[421825282,1778189944000,-273.47783956,0.0004249,120]
[421825286,1778189944000,-165.51017078,0.0004249,120]
[421825285,1778189944000,-284.32928574,0.0004249,120]
[421825296,1778189944000,-500.0,0.0004249,120]
[421825295,1778189944000,-500.0,0.0004249,120]
[421825293,1778189944000,-200.0,0.0004249,120]
[421825294,1778189944000,-156.587,0.0004249,120]
[421825292,1778189944000,-200.0,0.0004249,120]
[421825290,1778189944000,-500.0,0.0004249,120]
[421825283,1778189944000,-500.0,0.0004249,120]
[421825288,1778189944000,-520.0,0.0004249,120]
[421825289,1778189944000,-151.0,0.0004249,120]
[421825287,1778189944000,-200.0,0.0004249,120]
[421825284,1778189944000,-161.04941715,0.0004249,120]
[421825291,1778189944000,-500.0,0.0004249,120]
[421825313,1778189945000,-500.0,0.0004249,120]
[421825310,1778189945000,-500.0,0.0004249,120]
[421825309,1778189945000,-500.0,0.0004249,120]
[421825308,1778189945000,-151.0,0.0004249,120]
[421825306,1778189945000,-500.0,0.0004249,120]
[421825307,1778189945000,-500.0,0.0004249,120]
[421825304,1778189945000,-500.0,0.0004249,120]
[421825303,1778189945000,-500.0,0.0004249,120]
[421825312,1778189945000,-151.0,0.0004249,120]
[421825301,1778189945000,-500.0,0.0004249,120]
[421825302,1778189945000,-162.380719,0.0004249,120]
[421825300,1778189945000,-500.0,0.0004249,120]
[421825299,1778189945000,-162.380719,0.0004249,120]
[421825297,1778189945000,-200.0,0.0004249,120]
[421825298,1778189945000,-200.0,0.0004249,120]
[421825305,1778189945000,-500.0,0.0004249,120]
[421825315,1778189945000,-328.65947505,0.0004249,120]
[421825311,1778189945000,-500.0,0.0004249,120]
[421825329,1778189945000,-151.0,0.0004249,120]
[421825333,1778189945000,-151.0,0.0004249,120]
[421825316,1778189945000,-500.0,0.0004249,120]
[421825331,1778189945000,-620.0,0.0004249,120]
[421825330,1778189945000,-152.0,0.0004249,120]
[421825332,1778189945000,-500.0,0.0004249,120]
[421825326,1778189945000,-152.0,0.0004249,120]
[421825328,1778189945000,-500.0,0.0004249,120]
[421825327,1778189945000,-500.0,0.0004249,120]
[421825314,1778189945000,-500.0,0.0004249,120]
[421825324,1778189945000,-500.0,0.0004249,120]
[421825323,1778189945000,-500.0,0.0004249,120]
[421825321,1778189945000,-151.0,0.0004249,120]
[421825322,1778189945000,-500.0,0.0004249,120]
[421825319,1778189945000,-500.0,0.0004249,120]
[421825320,1778189945000,-2345.0,0.0004249,120]
[421825318,1778189945000,-500.0,0.0004249,120]
[421825317,1778189945000,-151.0,0.0004249,120]
[421825325,1778189945000,-151.0,0.0004249,120]
[421825346,1778189946000,-1555.5,0.0004249,30]
[421825345,1778189946000,-500.0,0.0004249,120]
[421825344,1778189946000,-500.0,0.0004249,120]
[421825342,1778189946000,-1500.0,0.0004249,30]
[421825343,1778189946000,-1068.11,0.0004249,120]
[421825341,1778189946000,-500.0,0.0004249,120]
[421825338,1778189946000,-151.0,0.0004249,120]
[421825337,1778189946000,-500.0,0.0004249,120]
[421825339,1778189946000,-1030.0,0.0004249,120]
[421825336,1778189946000,-151.0,0.0004249,120]
[421825334,1778189946000,-620.0,0.0004249,120]
[421825335,1778189946000,-500.0,0.0004249,120]
[421825340,1778189946000,-500.0,0.0004249,120]
[421825347,1778189946000,-240.03143225,0.0004249,120]
[421825349,1778189946000,-500.0,0.0004249,120]
[421825350,1778189946000,-1107.63007,0.0004249,120]
[421825348,1778189946000,-544.54252,0.0004249,120]
[421825363,1778189946000,-500.0,0.0004249,120]
[421825361,1778189946000,-537.6845,0.0004249,120]
[421825362,1778189946000,-151.0,0.0004249,120]
[421825359,1778189946000,-1734.62772924,0.0004249,30]
[421825360,1778189946000,-1235.18214925,0.0004249,120]
[421825357,1778189946000,-500.0,0.0004249,120]
[421825356,1778189946000,-1191.11104075,0.0004249,120]
[421825355,1778189946000,-1672.7364795,0.0004249,30]
[421825353,1778189946000,-500.0,0.0004249,120]
[421825354,1778189946000,-500.0,0.0004249,120]
[421825351,1778189946000,-1613.0535,0.0004249,30]
[421825358,1778189946000,-518.5,0.0004249,120]
[421825352,1778189946000,-1148.61238259,0.0004249,120]
[421825381,1778189947000,-156.587,0.0004249,120]
[421825380,1778189947000,-151.0,0.0004249,120]
[421825377,1778189947000,-151.0,0.0004249,120]
[421825379,1778189947000,-151.0,0.0004249,120]
[421825378,1778189947000,-151.0,0.0004249,120]
[421825376,1778189947000,-1934.38338737,0.0004249,30]
[421825374,1778189947000,-1934.38338737,0.0004249,30]
[421825375,1778189947000,-151.0,0.0004249,120]
[421825370,1778189947000,-1038.3445998,0.0004249,120]
[421825373,1778189947000,-151.0,0.0004249,120]
[421825369,1778189947000,-167.81310154,0.0004249,120]
[421825371,1778189947000,-151.0,0.0004249,120]
[421825368,1778189947000,-500.0,0.0004249,120]
[421825366,1778189947000,-537.6845,0.0004249,120]
[421825365,1778189947000,-1798.80895522,0.0004249,30]
[421825367,1778189947000,-151.0,0.0004249,120]
[421825364,1778189947000,-1235.18214925,0.0004249,120]
[421825372,1778189947000,-1865.36488657,0.0004249,30]
[421825383,1778189947000,-170.0,0.0004249,120]
[421825382,1778189947000,-151.0,0.0004249,120]
[421825385,1778189947000,-176.29,0.0004249,120]
[421825402,1778189947000,-260.287,0.0004249,120]
[421825403,1778189947000,-260.287,0.0004249,120]
[421825401,1778189947000,-251.0,0.0004249,120]
[421825384,1778189947000,-156.587,0.0004249,120]
[421825398,1778189947000,-151.0,0.0004249,120]
[421825400,1778189947000,-151.0,0.0004249,120]
[421825397,1778189947000,-9629.71944428,0.0004249,120]
[421825395,1778189947000,-151.0,0.0004249,120]
[421825399,1778189947000,-151.0,0.0004249,120]
[421825394,1778189947000,-151.0,0.0004249,120]
[421825396,1778189947000,-151.0,0.0004249,120]
[421825387,1778189947000,-189.57680101,0.0004249,120]
[421825388,1778189947000,-196.59114265,0.0004249,120]
[421825389,1778189947000,-203.86501493,0.0004249,120]
[421825386,1778189947000,-182.81273,0.0004249,120]
[421825390,1778189947000,-211.40802048,0.0004249,120]
[421825391,1778189947000,-219.23011724,0.0004249,120]
[421825393,1778189947000,-301.80394716,0.0004249,120]
[421825392,1778189947000,-219.23011724,0.0004249,120]
[421825413,1778189948000,-514.09650713,0.0004249,120]
[421825405,1778189948000,-514.09650713,0.0004249,120]
[421825406,1778189948000,-514.09650713,0.0004249,120]
[421825407,1778189948000,-514.09650713,0.0004249,120]
[421825410,1778189948000,-514.09650713,0.0004249,120]
[421825411,1778189948000,-514.09650713,0.0004249,120]
[421825408,1778189948000,-514.09650713,0.0004249,120]
[421825409,1778189948000,-514.09650713,0.0004249,120]
[421825414,1778189948000,-514.09650712,0.0004249,120]
[421825404,1778189948000,-514.09650713,0.0004249,120]
[421825412,1778189948000,-1000.0,0.0004249,120]
[421825417,1778189948000,-1000.0,0.0004249,120]
[421825416,1778189948000,-1000.0,0.0004249,120]
[421825418,1778189948000,500.0,0.0004249,120]
[421825419,1778189948000,501.9939754,0.0004249,120]
[421825420,1778189948000,500.0,0.0004249,120]
[421825422,1778189948000,500.0,0.0004249,120]
[421825421,1778189948000,500.0,0.0004249,120]
[421825423,1778189948000,500.0,0.0004249,120]
[421825424,1778189948000,500.0,0.0004249,120]
[421825415,1778189948000,-1000.0,0.0004249,120]
[421825425,1778189949000,500.0,0.0004249,120]
[421825427,1778189950000,500.0,0.0004249,120]
[421825426,1778189950000,500.0,0.0004249,120]
[421825428,1778189951000,500.0,0.0004249,120]
[421825430,1778189952000,500.0,0.0004249,120]
[421825429,1778189952000,500.0,0.0004249,120]
[421825431,1778189953000,500.0,0.0004249,120]
[421825433,1778189954000,500.0,0.0004249,120]
[421825434,1778189954000,500.0,0.0004249,120]
[421825432,1778189954000,625.92365751,0.0004249,30]
[421825437,1778189955000,500.0,0.0004249,120]
[421825438,1778189955000,160.67198756,0.00016438,30]
[421825436,1778189955000,160.67198756,0.00016438,30]
[421825435,1778189955000,500.0,0.0004249,120]
[421825439,1778189956000,500.0,0.0004249,120]
[421825441,1778189972000,160.67198756,0.00016438,30]
[421825440,1778189972000,160.67198756,0.00016438,30]
[421825442,1778189989000,160.67198756,0.00017312,30]
[421825443,1778190184000,162.0,0.00026517,120]
[421825450,1778190393000,-163.8906,0.00012626,2]
[421825449,1778190393000,-397.83545521,0.00012534,2]
[421825451,1778190393000,-23.91428516,0.00013686,2]
[421825453,1778190541000,314.584929,0.00024271,120]
[421825454,1778190546000,249.279552,0.00024271,120]
[421825456,1778190581000,749.043454,0.00024164,120]
[421825457,1778190584000,1937.48164,0.00023691,120]
[421825458,1778190597000,556.592171,0.00023691,120]
[421825459,1778190599000,1000.0,0.00022,30]
[421825460,1778190600000,150.0,0.000301,120]
[421825462,1778190600000,654.01,0.0002709,120]
[421825461,1778190600000,654.01,0.0002709,120]
[421825464,1778190601000,392.41,0.00025585,120]
[421825463,1778190601000,392.41,0.00025585,120]
[421825484,1778190632000,-2000.0,0.00016029,2]
[421825483,1778190632000,-300.0,0.00016,2]
[421825482,1778190632000,-167.55680049,0.00015647,2]
[421825481,1778190632000,-404.255524,0.00015568,2]
[421825479,1778190632000,-1699.58678316,0.00015055,2]
[421825477,1778190632000,-250.0,0.00015055,2]
[421825478,1778190632000,-616.02770273,0.00015055,2]
[421825474,1778190632000,-163.9057674,0.00014998,2]
[421825475,1778190632000,-1200.0,0.00015054,2]
[421825472,1778190632000,-124.41715084,0.00014998,2]
[421825473,1778190632000,-268.73814304,0.00014998,2]
[421825470,1778190632000,-50.9742654,0.00014897,2]
[421825471,1778190632000,-500.0,0.00014998,2]
[421825469,1778190632000,-116.5825351,0.00014897,2]
[421825467,1778190632000,-250.0,0.00014,2]
[421825465,1778190632000,-163.9057674,0.00013686,2]
[421825468,1778190632000,-163.9057674,0.00014036,2]
[421825466,1778190632000,-300.0,0.00013787,2]
[421825476,1778190632000,-250.0,0.00015055,2]
[421825485,1778190632000,-288.42,0.00016053,2]
[421825480,1778190632000,-250.0,0.00015055,2]
[421825486,1778190632000,-550.0,0.00016115,2]
[421825487,1778190632000,-3474.52,0.00016116,2]
[421825519,1778190632000,-5673.97539613,0.0001699,2]
[421825517,1778190632000,-500.0,0.00016973,2]
[421825500,1778190632000,-197.07,0.00016368,2]
[421825515,1778190632000,-513.61637996,0.00016964,2]
[421825508,1778190632000,-500.0,0.00016699,2]
[421825511,1778190632000,-294.08,0.00016712,2]
[421825506,1778190632000,-1680.0,0.00016558,2]
[421825502,1778190632000,-3830.75716071,0.0001637,2]
[421825504,1778190632000,-167.55680049,0.00016397,2]
[421825512,1778190632000,-465.98,0.00016727,2]
[421825495,1778190632000,-999.99,0.00016116,2]
[421825488,1778190632000,-1576.58,0.00016116,2]
[421825498,1778190632000,-407.24,0.00016367,2]
[421825491,1778190632000,-299.99,0.00016116,4]
[421825489,1778190632000,-4546.99,0.00016116,2]
[421825492,1778190632000,-14346.12107341,0.00016116,2]
[421825493,1778190632000,-10653.86892659,0.00016116,2]
[421825494,1778190632000,-150.99,0.00016116,2]
[421825490,1778190632000,-9999.99,0.00016116,2]
[421825522,1778190633000,575.441493,0.00023691,120]
[421825523,1778190636000,2000.0,0.0003013,120]
[421825527,1778190638000,-16662.63664147,0.0001699,2]
[421825526,1778190638000,-167.37,0.00016938,2]